bitfinex/quotes_ETHUSD_20250611
["timestamp","ask_amount","ask_price","bid_price","bid_amount"]
[1749632630569,0.1808,2762.0,2761.9,0.997]
[1749632631750,0.1808,2762.0,2761.9,1.33579946]
[1749632631960,0.1808,2762.0,2761.9,0.997]
[1749632632787,0.1808,2762.0,2761.9,1.33580962]
[1749632633090,0.1808,2762.0,2761.9,0.997]
[1749632633474,0.1808,2762.0,2761.9,1.33580913]
[1749632633661,0.1808,2762.0,2761.9,0.997]
[1749632634255,0.1808,2762.0,2761.9,1.33580725]
[1749632634464,0.1808,2762.0,2761.9,1.33580767]
[1749632634665,0.1808,2762.0,2761.9,0.997]
[1749632635257,0.66888,2762.0,2761.9,0.997]
[1749632638593,1.52580087,2762.0,2761.9,0.997]
[1749632638758,1.52579986,2762.0,2761.9,0.997]
[1749632640801,1.52641451,2762.0,2761.9,0.997]
[1749632641001,1.52641451,2762.0,2761.5,0.35674639]
[1749632641223,0.66888,2762.0,2761.9,0.997]
[1749632641407,1.34565375,2762.0,2761.9,0.997]
[1749632641717,1.52645375,2762.0,2761.9,0.997]
[1749632643400,7.86491227,2762.0,2761.9,0.997]
[1749632643941,1.52645375,2762.0,2761.9,0.997]
[1749632644730,1.52645375,2762.0,2760.5,0.3612]
[1749632644731,0.55,2761.9,2760.5,0.3612]
[1749632644938,6.33845852,2761.6,2760.9,10.0]
[1749632645146,6.33845852,2761.6,2760.6,8.91009776]
[1749632645147,0.85757375,2761.5,2761.2,10.0]
[1749632645309,6.33845852,2761.6,2761.1,13.75]
[1749632645508,0.85742824,2761.5,2761.2,0.20315077]
[1749632645710,6.33845852,2761.6,2761.3,0.33858417]
[1749632645947,0.85742915,2761.5,2761.4,0.997]
[1749632646241,6.03175533,2761.9,2761.4,0.997]
[1749632646414,0.1808,2761.5,2761.4,0.997]
[1749632646605,0.1808,2761.5,2761.4,1.33556197]
[1749632646810,0.1808,2761.5,2761.4,0.997]
[1749632647041,0.1808,2761.5,2761.4,1.20013311]
[1749632647244,0.1808,2761.5,2761.4,1.33555847]
[1749632647544,0.1808,2761.5,2761.4,0.997]
[1749632647545,1.03909452,2761.5,2761.4,0.997]
[1749632647706,2.56329452,2761.5,2761.4,0.997]
[1749632648042,9.03771556,2761.5,2761.4,0.997]
[1749632648546,10.45809586,2761.5,2761.4,0.997]
[1749632650119,0.55,2761.4,2761.2,0.20315077]
[1749632650330,21.25351044,2761.3,2761.2,0.20315077]
[1749632650508,23.71436063,2761.3,2761.2,1.20015077]
[1749632650705,25.84493108,2761.3,2761.2,1.20015077]
[1749632651243,25.84340415,2761.3,2761.2,1.20015077]
[1749632651648,23.7128337,2761.3,2761.2,1.20015077]
[1749632651843,25.84340415,2761.3,2761.2,1.20015077]
[1749632652347,23.7128337,2761.3,2761.2,1.20015077]
[1749632652544,19.9608337,2761.3,2761.2,1.20015077]
[1749632652714,23.7128337,2761.3,2761.2,1.20015077]
[1749632653113,25.13885434,2761.3,2761.2,1.20015077]
[1749632653314,21.38685434,2761.3,2761.2,1.20015077]
[1749632653514,25.13885434,2761.3,2761.2,1.20015077]
[1749632654030,21.38685434,2761.3,2761.2,1.20015077]
[1749632654562,25.13785434,2761.3,2761.2,1.20015077]
[1749632654862,1.524,2761.1,2760.5,0.997]
[1749632655066,0.1808,2760.7,2760.5,0.997]
[1749632656142,0.1808,2760.7,2760.6,28.30698795]
[1749632656652,1.06788478,2761.7,2760.7,28.171625]
[1749632656845,1.5261,2761.8,2760.7,28.171625]
[1749632656846,0.1808,2760.8,2760.7,28.171625]
[1749632657046,0.1808,2760.8,2760.7,32.26872198]
[1749632657241,0.1808,2760.8,2760.7,31.929625]
[1749632657477,0.1808,2760.8,2760.7,32.26872762]
[1749632657679,0.1808,2760.8,2760.7,35.55189471]
[1749632657843,1.5261,2761.8,2761.0,3.62180237]
[1749632658047,1.5261,2762.0,2761.3,37.968425]
[1749632658270,1.5261,2762.0,2761.4,14.131]
[1749632658271,0.85421886,2761.9,2761.4,14.131]
[1749632658578,1.5261,2762.0,2761.4,14.131]
[1749632658784,0.1808,2761.5,2761.4,24.131]
[1749632658990,0.1808,2761.5,2761.4,24.47005323]
[1749632659279,0.1808,2761.5,2761.4,24.131]
[1749632659888,0.1808,2761.5,2761.4,19.375]
[1749632660180,0.1808,2761.5,2761.4,10.371]
[1749632661259,0.1808,2761.5,2761.4,48.542625]
[1749632661657,0.1808,2761.5,2761.4,47.546625]
[1749632661861,0.1808,2761.5,2761.4,14.132]
[1749632662197,0.1808,2761.5,2761.4,4.758]
[1749632662427,0.1808,2761.5,2761.2,10.0]
[1749632662611,1.5149,2761.8,2761.3,17.273]
[1749632662894,1.5149,2761.8,2761.3,4.758]
[1749632663099,0.1808,2761.4,2761.3,14.758]
[1749632663759,0.1808,2761.4,2761.3,10.0]
[1749632663969,0.1808,2761.4,2761.3,14.756]
[1749632664271,1.06777966,2762.3,2761.3,56.02682355]
[1749632664470,2.69247966,2762.6,2761.7,27.968425]
[1749632664703,0.85429399,2762.5,2761.9,37.968425]
[1749632664863,1.10219339,2762.4,2762.0,3.763]
[1749632665063,0.2478994,2762.4,2762.1,10.37]
[1749632665559,0.1808,2762.2,2762.1,10.37]
[1749632667073,0.1808,2762.2,2762.1,38.338425]
[1749632668006,0.1808,2762.2,2762.1,41.95885872]
[1749632668300,0.1808,2762.3,2762.2,37.968425]
[1749632668500,0.1808,2762.3,2762.2,45.34772765]
[1749632668867,0.1808,2762.3,2762.2,41.727425]
[1749632669067,0.1808,2762.3,2762.2,26.456]
[1749632669279,0.1808,2762.3,2762.2,25.656]
[1749632669477,0.1808,2762.3,2762.2,23.192]
[1749632670401,0.1808,2762.3,2762.2,4.755]
[1749632670898,0.1808,2762.3,2762.2,14.755]
[1749632673506,0.1808,2762.3,2762.2,42.723425]
[1749632675504,1.6507,2763.4,2762.5,3.61990078]
[1749632675719,1.6507,2763.4,2762.7,27.968425]
[1749632675999,1.6507,2763.4,2762.8,3.756]
[1749632676227,9.68091592,2763.3,2762.9,3.756]
[1749632676514,9.68091592,2763.3,2763.0,0.996]
[1749632676726,1.13316159,2763.2,2763.1,3.755]
[1749632676903,1.13316159,2763.2,2763.1,0.996]
[1749632677222,0.1808,2763.2,2763.1,0.996]
[1749632677606,0.1808,2763.2,2763.1,28.964425]
[1749632677919,1.639,2764.0,2763.1,32.58347997]
[1749632678220,1.639,2764.0,2763.2,31.724425]
[1749632678221,0.1808,2763.3,2763.2,31.724425]
[1749632678580,0.1808,2763.3,2762.8,37.968425]
[1749632678816,0.1808,2763.3,2763.2,0.996]
[1749632679017,9.68091592,2763.4,2762.4,0.36734988]
[1749632679190,1.5212,2763.0,2762.4,7.686]
[1749632679390,1.5212,2763.0,2762.5,4.752]
[1749632679599,0.1808,2762.6,2762.5,24.392129]
[1749632681197,0.1808,2762.6,2762.5,4.756]
[1749632681495,0.1808,2762.6,2762.5,24.396129]
[1749632683124,0.1808,2762.6,2762.5,13.718]
[1749632686611,0.1808,2762.6,2762.4,0.36848686]
[1749632686823,0.1808,2762.6,2762.5,4.754]
[1749632687036,0.18456,2762.6,2762.3,10.0]
[1749632687308,0.1808,2762.4,2762.3,10.0]
[1749632687512,0.1808,2762.4,2762.3,24.394129]
[1749632688013,0.1808,2762.4,2762.3,4.754]
[1749632688212,0.1808,2762.4,2762.3,4.753]
[1749632688409,0.1808,2762.4,2762.3,0.995]
[1749632688611,1.7253,2762.4,2762.3,0.995]
[1749632688942,1.916286,2762.4,2762.3,0.995]
[1749632689114,2.7727729,2762.4,2762.3,0.995]
[1749632694048,1.0372869,2762.4,2762.3,0.995]
[1749632694202,1.0372869,2762.4,2762.3,10.995]
[1749632694203,0.1808,2762.4,2762.3,10.995]
[1749632694408,0.1808,2762.4,2762.3,20.635129]
[1749632696115,0.1808,2762.4,2762.3,16.317]
[1749632696533,0.1808,2762.4,2762.2,19.640129]
[1749632696859,0.1808,2762.4,2762.3,4.756]
[1749632697162,1.5545,2762.7,2762.3,4.756]
[1749632697337,0.1808,2762.4,2762.3,4.756]
[1749632697538,0.1769291,2762.4,2762.3,4.756]
[1749632699178,0.1769291,2762.4,2762.3,0.996]
[1749632699471,0.1769291,2762.4,2762.3,20.636129]
[1749632700581,0.1769291,2762.4,2762.3,24.393129]
[1749632700783,0.1769291,2762.4,2762.3,37.69421651]
[1749632701129,0.1769291,2762.4,2762.3,34.07404492]
[1749632702370,0.1769291,2762.4,2762.3,37.69421651]
[1749632703091,1.527,2763.3,2762.6,3.61974032]
[1749632703260,0.85811362,2763.2,2763.0,9.68091592]
[1749632703457,2.70035988,2763.7,2763.1,4.751]
[1749632703685,1.12804416,2763.6,2763.2,10.0]
[1749632703885,1.12804416,2763.6,2763.4,10.0]
[1749632703886,0.27003599,2763.6,2763.4,10.0]
[1749632704211,1.5464,2763.8,2763.5,3.755]
[1749632704366,1.6423,2764.1,2763.5,3.755]
[1749632704546,0.85784488,2764.0,2763.5,3.755]
[1749632704746,0.1808,2763.6,2763.5,23.395129]
[1749632705162,0.1808,2763.6,2763.5,32.764129]
[1749632706047,0.1808,2763.6,2763.5,36.3827286]
[1749632706307,0.1808,2763.6,2763.5,36.74267669]
[1749632706578,0.1808,2763.6,2763.5,33.12407709]
[1749632707152,0.1808,2763.6,2763.5,33.46069755]
[1749632707373,0.1808,2763.6,2763.5,33.46069759]
[1749632707654,0.1808,2763.6,2763.5,36.74267669]
[1749632708051,0.1808,2763.8,2763.7,29.640129]
[1749632708248,0.1808,2763.8,2763.7,27.01046673]
[1749632708568,0.08693411,2763.9,2763.8,19.640129]
[1749632708766,0.08693411,2763.9,2763.8,20.636129]
[1749632708986,1.5614,2764.7,2763.8,20.636129]
[1749632708987,1.5614,2764.7,2763.8,24.25433581]
[1749632709187,0.1808,2764.0,2763.9,27.01019945]
[1749632709357,0.1808,2764.0,2763.9,23.392129]
[1749632711286,1.5143,2765.1,2764.1,10.0]
[1749632711494,11.19521592,2765.1,2764.2,0.3365284]
[1749632711663,11.19521592,2765.1,2763.6,10.0]
[1749632711664,0.1808,2764.1,2763.6,19.640129]
[1749632711874,1.8015,2764.1,2763.5,9.369]
[1749632712058,1.6207,2764.1,2763.7,0.995]
[1749632712257,0.1808,2763.8,2763.7,0.995]
[1749632713473,0.1808,2763.8,2763.7,4.756]
[1749632714298,0.1808,2763.8,2763.7,24.396129]
[1749632714485,0.1808,2763.8,2763.7,17.889]
[1749632714796,0.1808,2763.8,2763.7,4.764]
[1749632718963,0.1808,2763.8,2763.7,24.404129]
[1749632719696,0.1808,2763.8,2763.7,4.762]
[1749632719867,0.1808,2763.8,2763.5,9.369]
[1749632720069,1.6207,2764.1,2763.6,4.763]
[1749632720273,1.6207,2764.1,2763.7,10.0]
[1749632720479,1.6207,2764.1,2763.8,3.768]
[1749632720882,0.1808,2763.9,2763.8,3.768]
[1749632722384,0.1808,2763.9,2763.7,10.0]
[1749632722592,0.1808,2763.9,2763.7,10.653735]
[1749632723492,0.1808,2763.9,2763.8,14.418735]
[1749632723699,1.5309,2764.3,2763.9,10.653735]
[1749632723886,1.5309,2764.3,2764.0,3.765]
[1749632724087,0.1808,2764.1,2764.0,3.765]
[1749632727221,0.1808,2764.1,2764.0,3.76]
[1749632727515,0.1808,2764.1,2763.6,10.653735]
[1749632727682,2.62382292,2764.6,2764.0,1.002]
[1749632727882,2.2285959,2764.5,2764.1,3.76]
[1749632728110,0.85579286,2764.4,2764.1,3.76]
[1749632728415,0.1808,2764.2,2764.1,3.76]
[1749632728621,1.03659286,2764.2,2764.1,3.76]
[1749632730696,1.24709444,2764.2,2764.1,4.758]
[1749632732717,1.03659286,2764.2,2764.1,14.758]
[1749632734387,1.03659286,2764.2,2764.1,14.753]
[1749632735434,1.03659286,2764.2,2763.5,9.369]
[1749632735727,1.5796,2763.8,2763.6,1.001]
[1749632735920,1.30139515,2763.7,2763.6,1.001]
[1749632736339,1.85139515,2763.7,2763.6,1.001]
[1749632736532,3.44929515,2763.7,2763.6,1.001]
[1749632737427,1.6544,2763.6,2762.0,0.74072655]
[1749632737592,0.1808,2762.9,2762.3,10.0]
[1749632737791,0.85579286,2762.8,2761.9,0.36577081]
[1749632737993,0.1808,2762.3,2762.1,30.0]
[1749632738210,1.6544,2762.7,2762.1,30.0]
[1749632738426,0.85672232,2762.6,2762.3,10.0]
[1749632738721,1.6544,2762.7,2762.2,3.757]
[1749632738922,0.8559553,2762.6,2762.3,30.0]
[1749632739225,1.6544,2762.7,2762.4,3.755]
[1749632739423,1.6544,2762.7,2762.0,1.002]
[1749632739623,1.6544,2762.7,2762.4,10.0]
[1749632739827,1.6544,2762.7,2762.5,3.755]
[1749632740216,0.1808,2762.6,2762.5,13.755]
[1749632740821,0.1808,2762.6,2762.5,10.0]
[1749632741028,0.1808,2762.6,2762.5,14.755]
[1749632742000,0.1808,2762.6,2762.5,4.755]
[1749632742334,1.21923478,2762.6,2762.5,4.755]
[1749632742533,0.36432,2762.6,2762.5,4.755]
[1749632742713,0.36432,2762.6,2762.5,1.002]
[1749632743438,2.75422824,2762.6,2762.5,1.002]
[1749632743598,3.12070824,2762.6,2762.5,1.002]
[1749632744229,4.18935792,2762.6,2762.5,1.002]
[1749632745433,3.12070824,2762.6,2762.5,1.002]
[1749632747335,1.7165,2762.6,2762.5,1.002]
[1749632747656,0.1808,2762.6,2762.5,1.002]
[1749632748528,0.1808,2762.6,2762.5,4.755]
[1749632750955,0.1808,2762.6,2761.9,10.0]
[1749632751115,4.7,2762.7,2762.5,1.002]
[1749632751315,4.7,2762.7,2762.6,1.002]
[1749632751825,4.8808,2762.7,2762.6,1.002]
[1749632752639,4.8808,2762.7,2761.9,10.0]
[1749632752946,4.8808,2762.7,2762.1,30.0]
[1749632753126,4.7,2762.7,2762.1,30.0]
[1749632753315,0.1808,2762.2,2762.1,30.0]
[1749632754737,0.1808,2762.2,2762.1,53.30134964]
[1749632755242,4.7,2762.9,2762.3,30.0]
[1749632755431,6.3466,2763.2,2762.5,40.0]
[1749632755632,1.6466,2763.5,2762.7,30.0]
[1749632755968,1.6466,2763.5,2762.9,12.486]
[1749632756319,0.1808,2763.0,2762.9,12.486]
[1749632756540,0.1808,2763.0,2762.9,2.80592106]
[1749632756856,0.1808,2763.0,2762.9,30.0]
[1749632757353,0.1808,2763.0,2762.9,13.021]
[1749632759818,0.1808,2763.0,2762.9,3.749]
[1749632760035,0.1808,2763.0,2762.9,4.741]
[1749632761552,0.1808,2763.0,2762.9,5.079872]
[1749632761752,0.1808,2763.0,2762.9,5.07987234]
[1749632761958,0.1808,2763.0,2762.9,4.741]
[1749632762672,0.1808,2763.0,2762.9,5.41874484]
[1749632762872,0.1808,2763.0,2762.9,5.0798708]
[1749632763171,0.1808,2763.0,2762.9,5.4187446]
[1749632763377,0.1808,2763.0,2762.9,5.0798708]
[1749632763545,0.1808,2763.0,2762.9,35.0798708]
[1749632763883,0.1808,2763.0,2762.9,19.1748708]
[1749632764447,0.1808,2763.0,2762.9,19.513738]
[1749632764755,0.1808,2763.0,2762.9,0.3388708]
[1749632764951,1.7788,2763.0,2762.9,1.66974532]
[1749632765179,2.63432791,2763.0,2762.9,1.3308708]
[1749632765380,2.8977607,2763.0,2762.9,1.3308708]
[1749632765879,3.96269026,2763.0,2762.9,1.3308708]
[1749632766179,4.66269026,2763.0,2762.9,1.3308708]
[1749632768286,3.5977607,2763.0,2762.9,1.3308708]
[1749632768443,4.1477607,2763.0,2762.9,1.3308708]
[1749632768644,14.1477607,2763.0,2762.9,1.3308708]
[1749632768919,16.2896259,2763.0,2762.9,1.3308708]
[1749632769085,16.2896259,2763.0,2762.1,9.37]
[1749632769242,1.07108018,2762.3,2762.2,0.992]
[1749632769445,3.56430809,2762.3,2762.2,0.992]
[1749632769647,3.74510809,2762.3,2762.2,0.992]
[1749632769994,4.159441,2762.3,2762.2,0.992]
[1749632770202,5.58754791,2762.3,2762.2,0.992]
[1749632770408,6.13754791,2762.3,2762.2,0.992]
[1749632770893,4.709441,2762.3,2762.2,0.992]
[1749632772007,6.13754791,2762.3,2762.2,0.992]
[1749632773566,4.709441,2762.3,2762.2,0.992]
[1749632774311,6.13754791,2762.3,2762.2,0.992]
[1749632774509,2.1623,2762.2,2762.1,9.37]
[1749632774806,13.6290427,2762.2,2762.1,0.992]
[1749632775717,11.5146,2762.1,2761.7,9.371]
[1749632775930,19.86171592,2761.8,2761.7,9.371]
[1749632776125,24.32490805,2761.8,2761.7,10.363]
[1749632778804,11.03632791,2761.8,2761.7,10.363]
[1749632779395,10.1808,2761.8,2761.7,10.363]
[1749632780111,0.1808,2761.8,2761.7,10.363]
[1749632780689,0.1808,2761.8,2761.7,14.113]
[1749632780894,0.1808,2761.8,2761.7,44.113]
[1749632781324,0.1808,2761.8,2761.7,44.45198805]
[1749632781622,0.1808,2761.8,2761.7,25.863]
[1749632781811,0.1808,2761.8,2761.7,24.52098611]
[1749632782328,0.1808,2761.8,2761.7,24.182]
[1749632783023,0.1808,2761.8,2761.7,24.52097773]
[1749632783201,0.1808,2761.8,2761.7,24.182]
[1749632783525,0.1808,2761.8,2761.7,24.51980608]
[1749632783824,0.1808,2761.8,2761.7,24.51980368]
[1749632784212,0.1808,2761.8,2761.7,24.182]
[1749632784814,0.1808,2761.8,2761.7,24.51981056]
[1749632785127,0.1808,2761.8,2761.7,24.182]
[1749632785624,0.1808,2761.8,2761.7,24.51981567]
[1749632785923,0.1808,2761.8,2761.7,24.182]
[1749632786130,0.1808,2761.8,2761.7,24.51981229]
[1749632786292,0.1808,2761.8,2761.7,24.51980736]
[1749632786494,0.1808,2761.8,2761.7,27.8029581]
[1749632786695,10.0,2762.8,2761.7,27.8029581]
[1749632786696,0.1808,2762.0,2761.8,30.0]
[1749632787034,0.1808,2762.0,2761.9,37.37067991]
[1749632787229,0.1808,2762.0,2761.9,34.08777104]
[1749632787429,0.1808,2762.0,2761.9,33.75]
[1749632787732,0.1808,2762.0,2761.9,30.33777177]
[1749632787933,0.1808,2762.0,2761.9,34.742]
[1749632788099,0.1808,2762.0,2761.9,35.07978325]
[1749632788626,0.1808,2762.0,2761.9,35.0797815]
[1749632788826,0.1808,2762.0,2761.9,34.742]
[1749632789034,0.1808,2762.0,2761.9,35.07977977]
[1749632789210,0.1808,2762.0,2761.9,34.742]
[1749632789831,0.1808,2762.0,2761.9,35.07978256]
[1749632790123,0.1808,2762.0,2761.9,34.742]
[1749632791111,0.1808,2762.0,2761.9,38.36269589]
[1749632791507,1.6085,2762.9,2762.2,30.0]
[1749632791729,0.85522037,2762.8,2762.4,10.0]
[1749632791898,1.6085,2762.9,2762.5,3.75]
[1749632792413,0.8808,2762.6,2762.5,3.75]
[1749632793003,0.8808,2762.6,2762.5,33.75]
[1749632793602,0.1808,2762.6,2762.5,33.75]
[1749632794630,0.1808,2762.6,2762.5,34.08772122]
[1749632794836,0.1808,2762.6,2762.5,33.75]
[1749632795212,0.1808,2762.6,2762.5,34.08771827]
[1749632795424,0.1808,2762.6,2762.5,33.75]
[1749632795745,0.1808,2762.6,2762.5,34.10579768]
[1749632795903,10.0,2763.1,2762.6,30.0]
[1749632796238,0.1808,2762.7,2762.6,30.0]
[1749632796803,0.1808,2762.7,2762.6,33.61977846]
[1749632797511,11.6418,2763.5,2762.6,33.61977846]
[1749632797716,0.1808,2762.9,2762.8,30.0]
[1749632798527,2.63686387,2763.8,2762.8,33.61950324]
[1749632798740,0.1808,2763.3,2763.2,40.0]
[1749632798959,0.1808,2763.3,2763.2,33.749]
[1749632800009,0.1808,2763.3,2763.2,37.36799247]
[1749632800466,1.5174,2764.2,2763.3,30.0]
[1749632800626,0.1808,2763.4,2763.3,30.0]
[1749632800831,0.1808,2763.4,2763.3,33.749]
[1749632801975,0.1808,2763.4,2763.3,3.749]
[1749632802159,1.5174,2764.2,2763.3,37.3678615]
[1749632802355,1.5174,2764.2,2763.5,30.0]
[1749632802576,1.594,2764.4,2763.6,14.109]
[1749632802864,1.594,2764.4,2763.7,30.0]
[1749632803077,1.594,2764.4,2763.9,40.0]
[1749632803277,1.594,2764.4,2764.0,3.748]
[1749632803429,0.1808,2763.9,2763.7,30.0]
[1749632803627,1.6139,2764.6,2763.9,40.0]
[1749632803829,1.6139,2764.9,2764.1,30.0]
[1749632804067,1.6139,2764.9,2764.3,40.0]
[1749632804277,1.5089,2765.3,2764.5,40.0]
[1749632804446,1.97346208,2765.3,2764.7,40.0]
[1749632804638,1.97346208,2765.3,2764.9,10.0]
[1749632804965,1.97346208,2765.3,2764.9,3.748]
[1749632805158,0.1808,2765.0,2764.9,3.748]
[1749632805849,0.1808,2765.0,2764.1,30.0]
[1749632806052,1.01808,2764.9,2764.3,40.0]
[1749632806363,1.5249,2765.2,2764.5,43.61726939]
[1749632806665,0.46456208,2765.3,2764.7,30.0]
[1749632806866,0.46456208,2765.3,2764.9,30.0]
[1749632807093,0.46456208,2765.3,2765.1,10.0]
[1749632807236,0.76565205,2765.2,2765.0,3.748]
[1749632807582,0.76565205,2765.2,2765.1,0.991]
[1749632807930,0.94645205,2765.2,2765.1,0.991]
[1749632808734,0.1808,2765.2,2765.1,30.991]
[1749632809781,0.1808,2765.2,2765.1,34.738]
[1749632814475,0.1808,2765.2,2765.1,30.991]
[1749632814677,0.1808,2765.2,2764.6,3.61705763]
[1749632814678,0.1808,2765.2,2764.6,16.85]
[1749632814877,9.68091592,2765.2,2764.7,4.737]
[1749632815078,1.12299159,2765.1,2764.7,4.737]
[1749632815378,1.12299159,2765.1,2764.7,0.991]
[1749632815379,0.1808,2764.8,2764.7,0.991]
[1749632815539,1.7837,2764.8,2764.7,0.991]
[1749632819050,0.1808,2764.8,2764.7,0.991]
[1749632819278,0.1808,2764.8,2764.7,4.737]
[1749632819457,0.1808,2764.8,2764.7,34.737]
[1749632819788,0.1808,2764.8,2764.7,10.008]
[1749632819949,0.1808,2764.8,2763.9,0.25780346]
[1749632820141,11.574,2765.2,2764.1,30.0]
[1749632820349,0.1808,2764.2,2764.1,12.514]
[1749632820607,0.1808,2764.2,2764.0,0.991]
[1749632820880,0.1808,2764.2,2764.1,0.991]
[1749632821249,1.8465,2764.2,2764.1,0.991]
[1749632821442,13.99924159,2764.2,2764.1,0.991]
[1749632821877,14.8499991,2764.2,2764.1,0.991]
[1749632822254,20.0999991,2764.2,2764.1,0.991]
[1749632823770,29.78091502,2764.2,2764.1,0.991]
[1749632825289,30.84482129,2764.2,2764.1,0.991]
[1749632825683,11.5766,2764.1,2763.5,9.364]
[1749632825891,11.5766,2763.8,2763.6,0.991]
[1749632826107,11.03155751,2763.7,2763.6,0.991]
[1749632826587,2.54335751,2763.7,2763.6,0.991]
[1749632827388,0.1808,2763.7,2763.6,0.991]
[1749632831096,0.1808,2763.7,2763.6,4.737]
[1749632831415,0.1808,2763.7,2763.5,9.364]
[1749632831416,1.5602,2763.6,2763.5,9.364]
[1749632831556,14.18912571,2763.6,2763.5,9.364]
[1749632831761,14.18912571,2763.6,2763.3,0.08]
[1749632831762,12.0531,2763.5,2763.3,0.08]
[1749632832112,24.0136993,2763.4,2763.3,0.08]
[1749632832411,22.58547008,2763.4,2763.3,0.08]
[1749632832560,29.10876805,2763.4,2763.3,0.08]
[1749632832907,0.55,2763.3,2763.2,0.991]
[1749632833060,2.81969267,2763.3,2763.2,0.991]
[1749632833260,4.41269267,2763.3,2763.2,0.991]
[1749632833587,16.74145416,2763.3,2763.2,0.991]
[1749632833790,19.80314482,2763.3,2763.2,0.991]
[1749632834357,20.86542155,2763.3,2763.2,0.991]
[1749632834753,20.86528318,2763.3,2763.2,0.991]
[1749632834984,19.80314482,2763.3,2763.2,0.991]
[1749632835382,20.86479118,2763.3,2763.2,0.991]
[1749632837177,19.80314482,2763.3,2763.2,0.991]
[1749632837558,16.05614482,2763.3,2763.2,0.991]
[1749632837824,12.44445416,2763.3,2763.2,0.991]
[1749632838406,10.55,2763.2,2762.2,10.08]
[1749632838708,26.42337008,2763.3,2762.1,9.366]
[1749632838709,0.1808,2762.6,2762.3,0.991]
[1749632838862,9.68091592,2762.9,2762.3,0.991]
[1749632839066,0.1808,2762.4,2762.3,0.991]
[1749632841785,0.1808,2762.4,2762.3,1.071]
[1749632841997,0.1808,2762.4,2762.3,34.69117159]
[1749632843097,0.1808,2762.4,2762.3,44.69117159]
[1749632844260,0.1808,2762.4,2762.3,41.071]
[1749632844602,0.1808,2762.4,2762.3,44.69117159]
[1749632845120,4.7,2762.8,2762.6,3.61972481]
[1749632845341,4.7,2762.8,2762.7,33.748]
[1749632845539,4.8808,2762.8,2762.4,12.336]
[1749632845852,4.7,2762.8,2762.7,38.35864744]
[1749632846032,1.6589,2763.6,2762.9,40.0]
[1749632846033,4.7,2763.5,2762.9,40.0]
[1749632846235,0.1808,2763.0,2762.9,30.0]
[1749632846440,0.1808,2763.0,2762.9,4.311]
[1749632846667,0.1808,2763.0,2762.9,10.0]
[1749632846883,0.1808,2763.0,2762.9,0.991]
[1749632848362,0.1808,2763.0,2762.9,30.0]
[1749632848528,0.1808,2763.0,2762.9,0.991]
[1749632848956,0.1808,2763.0,2762.5,3.61983611]
[1749632849258,0.1808,2763.0,2762.7,10.0]
[1749632849557,4.7,2763.5,2762.6,8.36072332]
[1749632849718,0.85454599,2763.4,2762.8,30.0]
[1749632849922,4.7,2763.5,2763.0,10.0]
[1749632850123,4.7,2763.5,2763.0,30.0]
[1749632850360,0.1808,2763.1,2763.0,30.0]
[1749632852648,0.1808,2763.1,2763.0,33.61925443]
[1749632852963,1.6992,2763.1,2763.0,0.991]
[1749632853140,3.6928898,2763.1,2763.0,0.991]
[1749632853537,3.69281483,2763.1,2763.0,0.991]
[1749632855465,2.55480324,2763.1,2763.0,0.991]
[1749632860258,27.50621916,2763.1,2763.0,0.991]
[1749632860569,29.64837952,2763.1,2763.0,0.991]
[1749632860926,1.5711,2762.9,2762.1,9.366]
[1749632861129,1.25092899,2762.3,2762.2,0.991]
[1749632861448,1.03640324,2762.3,2762.2,0.991]
[1749632861837,2.4632419,2762.3,2762.2,0.991]
[1749632862140,13.0132419,2762.3,2762.2,0.991]
[1749632862476,16.14369189,2762.3,2762.2,0.991]
[1749632863978,15.59369189,2762.3,2762.2,0.991]
[1749632864277,1.03640324,2762.3,2762.2,0.991]
[1749632865268,1.58640324,2762.3,2762.2,0.991]
[1749632865467,3.0132419,2762.3,2762.2,0.991]
[1749632865839,1.58640324,2762.3,2762.2,0.991]
[1749632866858,6.28640324,2762.3,2762.2,0.991]
[1749632867058,8.20937743,2762.3,2762.2,0.991]
[1749632867563,9.27870068,2762.3,2762.2,0.991]
[1749632868234,8.20937743,2762.3,2762.2,0.991]
[1749632868431,9.27875414,2762.3,2762.2,0.991]
[1749632868877,8.72875414,2762.3,2762.2,0.991]
[1749632869170,6.80577995,2762.3,2762.2,0.991]
[1749632869476,5.73640324,2762.3,2762.2,0.991]
[1749632872170,15.73640324,2762.3,2762.2,0.991]
[1749632873147,5.73640324,2762.3,2762.2,0.991]
[1749632873373,0.1808,2762.3,2762.1,3.749]
[1749632873544,4.7,2762.7,2762.2,40.0]
[1749632873747,4.7,2762.7,2762.3,10.0]
[1749632873948,4.7,2762.7,2762.4,10.0]
[1749632874186,0.1808,2762.4,2762.2,30.0]
[1749632874366,4.7,2762.7,2762.2,30.0]
[1749632874551,0.1808,2762.3,2762.2,30.0]
[1749632875183,0.1808,2762.3,2762.2,40.362]
[1749632877160,0.1808,2762.3,2762.2,12.419]
[1749632877360,0.1808,2762.3,2762.2,10.362]
[1749632877562,0.1808,2762.3,2762.2,9.371]
[1749632877867,0.1808,2762.3,2762.2,14.111]
[1749632879385,0.1808,2762.3,2762.2,9.371]